[Event "NJSK 2026 Jeugd A"]
[Site "Helmond, Netherlands"]
[Date "2026.04.28"]
[Round "4.8"]
[White "Fallaux, Storm"]
[Black "Ponomarev, Ivan"]
[Result "1/2-1/2"]
[TimeControl "90min/40moves + 30min + 30sec/move"]
[WhiteTitle "-"]
[BlackTitle "-"]
[WhiteFideId "1073095"]
[BlackFideId "34411003"]
[WhiteElo "2034"]
[BlackElo "1983"]

1. e4 {[%clk 01:30:57]} {[%emt 00:00:04]} c5 {[%clk 01:30:59]} {[%emt
00:00:02]} 2. Nf3 {[%clk 01:31:21]} {[%emt 00:00:05]} d6 {[%clk 01:31:27]}
{[%emt 00:00:02]} 3. d4 {[%clk 01:31:45]} {[%emt 00:00:06]} cxd4 {[%clk
01:31:54]} {[%emt 00:00:03]} 4. Nxd4 {[%clk 01:32:08]} {[%emt 00:00:06]} Nf6
{[%clk 01:32:22]} {[%emt 00:00:02]} 5. Bd3 {[%clk 01:32:31]} {[%emt 00:00:08]}
Nc6 {[%clk 01:32:47]} {[%emt 00:00:05]} 6. Ne2 {[%clk 01:32:57]} {[%emt
00:00:04]} d5 {[%clk 01:33:13]} {[%emt 00:00:04]} 7. exd5 {[%clk 01:33:23]}
{[%emt 00:00:04]} Qxd5 {[%clk 01:33:38]} {[%emt 00:00:05]} 8. O-O {[%clk
01:33:46]} {[%emt 00:00:07]} g6 {[%clk 01:34:04]} {[%emt 00:00:03]} 9. Nbc3
{[%clk 01:34:13]} {[%emt 00:00:04]} Qa5 {[%clk 01:34:18]} {[%emt 00:00:17]} 10.
Bb5 {[%clk 01:34:37]} {[%emt 00:00:06]} Bd7 {[%clk 01:25:26]} {[%emt 00:09:22]}
11. Bd2 {[%clk 01:34:38]} {[%emt 00:00:29]} Bg7 {[%clk 01:16:32]} {[%emt
00:09:24]} 12. Nd5 {[%clk 01:34:28]} {[%emt 00:00:39]} Qd8 {[%clk 01:16:48]}
{[%emt 00:00:15]} 13. Bc3 {[%clk 01:32:57]} {[%emt 00:02:00]} O-O {[%clk
01:16:19]} {[%emt 00:00:59]} 14. Nxf6+ {[%clk 01:32:39]} {[%emt 00:00:48]} Bxf6
{[%clk 01:14:04]} {[%emt 00:02:45]} 15. Bxf6 {[%clk 01:32:12]} {[%emt
00:00:57]} exf6 {[%clk 01:14:32]} {[%emt 00:00:02]} 16. Bxc6 {[%clk 01:32:31]}
{[%emt 00:00:11]} Bxc6 {[%clk 01:14:48]} {[%emt 00:00:14]} 17. Qxd8 {[%clk
01:32:44]} {[%emt 00:00:17]} Rfxd8 {[%clk 01:14:10]} {[%emt 00:01:09]} 18. Rfd1
{[%clk 01:32:05]} {[%emt 00:01:07]} Rac8 {[%clk 01:06:05]} {[%emt 00:08:36]} 19.
c3 {[%clk 01:06:39]} {[%emt 00:25:56]} f5 {[%clk 01:03:10]} {[%emt 00:03:25]}
20. f3 {[%clk 01:04:51]} {[%emt 00:02:17]} Kg7 {[%clk 01:01:35]} {[%emt
00:02:06]} 21. Kf2 {[%clk 01:04:53]} {[%emt 00:00:28]} Kf6 {[%clk 01:01:46]}
{[%emt 00:00:19]} 22. h4 {[%clk 00:59:57]} {[%emt 00:05:26]} a6 {[%clk
00:59:29]} {[%emt 00:02:48]} 23. Nd4 {[%clk 00:58:05]} {[%emt 00:02:20]} Re8
{[%clk 00:37:54]} {[%emt 00:22:06]} 24. Re1 {[%clk 00:57:09]} {[%emt 00:01:26]}
Bd5 {[%clk 00:35:00]} {[%emt 00:03:25]} 25. Rxe8 {[%clk 00:56:45]} {[%emt
00:00:53]} Rxe8 {[%clk 00:35:27]} {[%emt 00:00:04]} 26. b3 {[%clk 00:57:01]}
{[%emt 00:00:13]} Re7 {[%clk 00:32:54]} {[%emt 00:03:03]} 27. c4 {[%clk
00:56:52]} {[%emt 00:00:40]} Be6 {[%clk 00:31:06]} {[%emt 00:02:18]} 28. f4
{[%clk 00:56:14]} {[%emt 00:01:08]} Rc7 {[%clk 00:28:24]} {[%emt 00:03:12]} 29.
a4 {[%clk 00:55:03]} {[%emt 00:01:41]} Bd7 {[%clk 00:23:15]} {[%emt 00:05:41]}
30. Nf3 {[%clk 00:50:27]} {[%emt 00:05:05]} Bc6 {[%clk 00:16:55]} {[%emt
00:06:51]} 31. Ne5 {[%clk 00:46:28]} {[%emt 00:04:29]} Be4 {[%clk 00:17:05]}
{[%emt 00:00:20]} 32. b4 {[%clk 00:44:22]} {[%emt 00:02:35]} Ke6 {[%clk
00:13:42]} {[%emt 00:03:54]} 33. Rc1 {[%clk 00:41:44]} {[%emt 00:03:08]} a5
{[%clk 00:06:21]} {[%emt 00:07:50]} 34. b5 {[%clk 00:40:16]} {[%emt 00:01:59]}
f6 {[%clk 00:05:49]} {[%emt 00:01:01]} 35. Nf3 {[%clk 00:40:30]} {[%emt
00:00:16]} Bxf3 {[%clk 00:06:15]} {[%emt 00:00:05]} 36. Kxf3 {[%clk 00:40:17]}
{[%emt 00:00:43]} Kd6 {[%clk 00:06:27]} {[%emt 00:00:18]} 37. Ke3 {[%clk
00:40:21]} {[%emt 00:00:25]} Kc5 {[%clk 00:06:35]} {[%emt 00:00:23]} 38. b6
{[%clk 00:30:03]} {[%emt 00:10:48]} Re7+ {[%clk 00:01:38]} {[%emt 00:05:27]} 39.
Kf3 {[%clk 00:28:51]} {[%emt 00:01:42]} Kxb6 {[%clk 00:00:38]} {[%emt
00:01:31]} 40. Rb1+ {[%clk 00:20:33]} {[%emt 00:08:48]} Kc6 {[%clk 00:00:48]}
{[%emt 00:00:18]} 41. Rb5 {[%clk 00:18:17]} {[%emt 00:02:47]} b6 {[%clk
00:14:51]} {[%emt 00:16:27]} 42. c5 {[%clk 00:47:54]} {[%emt 00:00:52]} bxc5
{[%clk 00:14:43]} {[%emt 00:00:40]} 43. Rxa5 {[%clk 00:48:15]} {[%emt
00:00:09]} c4 {[%clk 00:11:47]} {[%emt 00:03:26]} 44. Rb5 {[%clk 00:47:20]}
{[%emt 00:01:24]} Ra7 {[%clk 00:09:23]} {[%emt 00:02:54]} 45. Rb4 {[%clk
00:45:07]} {[%emt 00:02:43]} Kc5 {[%clk 00:09:44]} {[%emt 00:00:10]} 46. Rb5+
{[%clk 00:45:31]} {[%emt 00:00:05]} Kd4 {[%clk 00:09:55]} {[%emt 00:00:19]} 47.
a5 {[%clk 00:45:56]} {[%emt 00:00:06]} Kd3 {[%clk 00:08:34]} {[%emt 00:01:50]}
48. Rd5+ {[%clk 00:45:46]} {[%emt 00:00:39]} Kc3 {[%clk 00:06:48]} {[%emt
00:02:17]} 49. Rb5 {[%clk 00:44:45]} {[%emt 00:01:31]} Kc2 {[%clk 00:05:47]}
{[%emt 00:01:31]} 50. Ke3 {[%clk 00:44:37]} {[%emt 00:00:39]} c3 {[%clk
00:05:30]} {[%emt 00:00:47]} 51. g3 {[%clk 00:43:47]} {[%emt 00:01:19]} Re7+
{[%clk 00:03:23]} {[%emt 00:02:38]} 52. Kf2 {[%clk 00:41:29]} {[%emt 00:02:48]}
Ra7 {[%clk 00:01:31]} {[%emt 00:02:21]} 53. Ke2 {[%clk 00:41:20]} {[%emt
00:00:39]} Kc1 {[%clk 00:01:31]} {[%emt 00:00:30]} 54. h5 {[%clk 00:40:53]}
{[%emt 00:00:56]} Re7+ {[%clk 00:01:28]} {[%emt 00:00:33]} 55. Kf2 {[%clk
00:41:07]} {[%emt 00:00:16]} gxh5 {[%clk 00:01:17]} {[%emt 00:00:41]} 56. a6
{[%clk 00:41:36]} {[%emt 00:00:01]} Ra7 {[%clk 00:01:03]} {[%emt 00:00:45]} 57.
Rb6 {[%clk 00:42:05]} c2 {[%clk 00:00:47]} {[%emt 00:00:46]} 58. Ke2 {[%clk
00:42:22]} {[%emt 00:00:12]} Re7+ {[%clk 00:01:04]} {[%emt 00:00:14]} 59. Kf2
{[%clk 00:42:40]} {[%emt 00:00:12]} Kd1 {[%clk 00:00:56]} {[%emt 00:00:38]} 60.
Rd6+ {[%clk 00:43:01]} {[%emt 00:00:08]} Kc1 {[%clk 00:01:19]} {[%emt
00:00:08]} 61. Rb6 {[%clk 00:43:29]} {[%emt 00:00:02]} Kd2 {[%clk 00:01:07]}
{[%emt 00:00:41]} 62. Rd6+ {[%clk 00:43:52]} {[%emt 00:00:06]} Kc3 {[%clk
00:00:59]} {[%emt 00:00:39]} 63. Rc6+ {[%clk 00:44:16]} {[%emt 00:00:06]} Kd3
{[%clk 00:00:59]} {[%emt 00:00:30]} 64. Rd6+ {[%clk 00:44:34]} {[%emt
00:00:12]} 1/2-1/2

[Event "NJSK 2026 Jeugd A"]
[Site "Helmond, Netherlands"]
[Date "2026.04.28"]
[Round "4.9"]
[White "Ten Kate, Gustav"]
[Black "Garay, Enzo"]
[Result "0-1"]
[TimeControl "90min/40moves + 30min + 30sec/move"]
[WhiteTitle "-"]
[BlackTitle "-"]
[WhiteFideId "1095781"]
[BlackFideId "40104125"]
[WhiteElo "1972"]
[BlackElo "2098"]

1. e4 {[%clk 01:30:59]} e6 {[%clk 01:30:56]} {[%emt 00:00:05]} 2. d4 {[%clk
01:31:25]} {[%emt 00:00:03]} d5 {[%clk 01:31:25]} {[%emt 00:00:01]} 3. e5
{[%clk 01:31:49]} {[%emt 00:00:06]} c5 {[%clk 01:31:51]} {[%emt 00:00:04]} 4.
c3 {[%clk 01:32:16]} {[%emt 00:00:03]} Nc6 {[%clk 01:32:19]} {[%emt 00:00:01]}
5. Nf3 {[%clk 01:32:42]} {[%emt 00:00:04]} Bd7 {[%clk 01:32:45]} {[%emt
00:00:05]} 6. Be2 {[%clk 01:33:08]} {[%emt 00:00:04]} f6 {[%clk 01:33:06]}
{[%emt 00:00:09]} 7. O-O {[%clk 01:33:21]} {[%emt 00:00:17]} fxe5 {[%clk
01:30:53]} {[%emt 00:02:43]} 8. Nxe5 {[%clk 01:33:46]} {[%emt 00:00:04]} Nxe5
{[%clk 01:31:04]} {[%emt 00:00:19]} 9. dxe5 {[%clk 01:34:12]} {[%emt 00:00:05]}
Qc7 {[%clk 01:31:31]} {[%emt 00:00:03]} 10. Re1 {[%clk 01:34:37]} {[%emt
00:00:04]} O-O-O {[%clk 01:31:25]} {[%emt 00:00:36]} 11. Bf1 {[%clk 01:35:04]}
{[%emt 00:00:03]} Ne7 {[%clk 01:31:51]} {[%emt 00:00:04]} 12. a4 {[%clk
01:35:05]} {[%emt 00:00:29]} Nf5 {[%clk 01:32:17]} {[%emt 00:00:04]} 13. Na3
{[%clk 01:34:21]} {[%emt 00:01:14]} c4 {[%clk 01:32:28]} {[%emt 00:00:20]} 14.
b3 {[%clk 01:27:00]} {[%emt 00:07:51]} cxb3 {[%clk 01:32:06]} {[%emt 00:00:51]}
15. Qxb3 {[%clk 01:23:28]} {[%emt 00:04:02]} Bc5 {[%clk 01:32:09]} {[%emt
00:00:28]} 16. c4 {[%clk 01:11:58]} {[%emt 00:12:00]} Rhf8 {[%clk 01:28:24]}
{[%emt 00:04:14]} 17. Ra2 {[%clk 01:03:32]} {[%emt 00:08:57]} Qa5 {[%clk
01:09:36]} {[%emt 00:19:17]} 18. Qd1 {[%clk 00:46:44]} {[%emt 00:17:18]} Bc6
{[%clk 00:59:17]} {[%emt 00:10:49]} 19. Bd3 {[%clk 00:21:46]} {[%emt 00:25:28]}
dxc4 {[%clk 00:44:01]} {[%emt 00:15:48]} 20. Nxc4 {[%clk 00:21:59]} {[%emt
00:00:17]} Qc3 {[%clk 00:44:08]} {[%emt 00:00:22]} 21. Bb2 {[%clk 00:05:33]}
{[%emt 00:16:57]} Qxd3 {[%clk 00:43:17]} {[%emt 00:01:21]} 22. Nd6+ {[%clk
00:05:56]} {[%emt 00:00:06]} Rxd6 {[%clk 00:43:35]} {[%emt 00:00:13]} 23. exd6
{[%emt 00:01:45]} 0-1

[Event "NJSK 2026 Jeugd A"]
[Site "Helmond, Netherlands"]
[Date "2026.04.29"]
[Round "5.1"]
[White "Terlouw, Wouter"]
[Black "Ritzerveld, Noah"]
[Result "1-0"]
[TimeControl "90min/40moves + 30min + 30sec/move"]
[WhiteTitle "-"]
[BlackTitle "-"]
[WhiteFideId "1087401"]
[BlackFideId "1085760"]
[WhiteElo "2272"]
[BlackElo "2205"]

1. d4 {[%clk 01:30:43]} {[%emt 00:00:17]} d5 {[%clk 01:30:55]} {[%emt
00:00:05]} 2. c4 {[%clk 01:31:09]} {[%emt 00:00:03]} c6 {[%clk 01:31:23]}
{[%emt 00:00:03]} 3. Nf3 {[%clk 01:31:35]} {[%emt 00:00:04]} Nf6 {[%clk
01:31:49]} {[%emt 00:00:03]} 4. Nc3 {[%clk 01:32:00]} {[%emt 00:00:05]} e6
{[%clk 01:32:14]} {[%emt 00:00:05]} 5. Qd3 {[%clk 01:32:27]} {[%emt 00:00:03]}
dxc4 {[%clk 01:31:51]} {[%emt 00:00:54]} 6. Qxc4 {[%clk 01:32:52]} {[%emt
00:00:05]} b5 {[%clk 01:32:16]} {[%emt 00:00:06]} 7. Qd3 {[%clk 01:33:18]}
{[%emt 00:00:04]} a6 {[%clk 01:32:11]} {[%emt 00:00:35]} 8. g4 {[%clk
01:33:43]} {[%emt 00:00:04]} c5 {[%clk 01:30:49]} {[%emt 00:01:52]} 9. g5
{[%clk 01:34:02]} {[%emt 00:00:11]} c4 {[%clk 01:30:26]} {[%emt 00:00:53]} 10.
Qe3 {[%clk 01:34:26]} {[%emt 00:00:06]} Nd5 {[%clk 01:30:07]} {[%emt 00:00:48]}
11. Nxd5 {[%clk 01:34:50]} {[%emt 00:00:06]} Qxd5 {[%clk 01:30:31]} {[%emt
00:00:06]} 12. Bg2 {[%clk 01:35:16]} {[%emt 00:00:04]} Bb7 {[%clk 01:23:30]}
{[%emt 00:07:32]} 13. O-O {[%clk 01:35:27]} {[%emt 00:00:17]} Be7 {[%clk
01:15:50]} {[%emt 00:08:11]} 14. b3 {[%clk 01:34:04]} {[%emt 00:01:53]} cxb3
{[%clk 01:09:59]} {[%emt 00:06:22]} 15. axb3 {[%clk 01:34:15]} {[%emt
00:00:19]} O-O {[%clk 01:07:52]} {[%emt 00:02:37]} 16. Bd2 {[%clk 01:22:11]}
{[%emt 00:12:34]} Rc8 {[%clk 00:49:55]} {[%emt 00:18:28]} 17. Rfc1 {[%clk
01:19:57]} {[%emt 00:02:44]} Rxc1+ {[%clk 00:43:55]} {[%emt 00:06:30]} 18. Rxc1
{[%clk 01:20:13]} {[%emt 00:00:13]} Bc6 {[%clk 00:37:54]} {[%emt 00:06:32]} 19.
Rxc6 {[%clk 01:16:48]} {[%emt 00:03:55]} Nxc6 {[%clk 00:36:24]} {[%emt
00:02:00]} 20. Ne5 {[%clk 01:17:08]} {[%emt 00:00:10]} Qxd4 {[%clk 00:35:12]}
{[%emt 00:01:42]} 21. Qxd4 {[%clk 01:11:37]} {[%emt 00:06:00]} Nxd4 {[%clk
00:35:35]} {[%emt 00:00:07]} 22. Bxa8 {[%clk 01:11:59]} {[%emt 00:00:08]} Nxb3
{[%clk 00:35:34]} {[%emt 00:00:33]} 23. Be3 {[%clk 01:02:21]} {[%emt 00:10:08]}
a5 {[%clk 00:34:39]} {[%emt 00:01:25]} 24. Be4 {[%clk 01:02:03]} {[%emt
00:00:48]} a4 {[%clk 00:33:53]} {[%emt 00:01:16]} 25. Bc2 {[%clk 00:58:14]}
{[%emt 00:04:18]} Na5 {[%clk 00:33:00]} {[%emt 00:01:23]} 26. Bd2 {[%clk
00:56:02]} {[%emt 00:02:42]} Nb7 {[%clk 00:29:41]} {[%emt 00:03:51]} 27. Bd3
{[%clk 00:55:00]} {[%emt 00:01:31]} a3 {[%clk 00:29:16]} {[%emt 00:00:55]} 28.
Bxb5 {[%clk 00:54:03]} {[%emt 00:01:27]} Bxg5 {[%clk 00:29:21]} {[%emt
00:00:24]} 29. e3 {[%clk 00:44:51]} {[%emt 00:09:43]} a2 {[%clk 00:24:28]}
{[%emt 00:05:23]} 30. Bc3 {[%clk 00:45:14]} {[%emt 00:00:06]} Na5 {[%clk
00:24:41]} {[%emt 00:00:19]} 31. Ba4 {[%clk 00:40:29]} {[%emt 00:05:14]} Bf6
{[%clk 00:22:51]} {[%emt 00:02:19]} 32. f4 {[%clk 00:40:38]} {[%emt 00:00:21]}
Nc4 {[%clk 00:13:54]} {[%emt 00:09:28]} 33. Kf2 {[%clk 00:40:22]} {[%emt
00:00:46]} Bh4+ {[%clk 00:12:35]} {[%emt 00:01:49]} 34. Ke2 {[%clk 00:40:13]}
{[%emt 00:00:30]} Nxe5 {[%clk 00:12:41]} {[%emt 00:00:33]} 35. fxe5 {[%clk
00:40:25]} {[%emt 00:00:17]} Bd8 {[%clk 00:11:33]} {[%emt 00:01:39]} 36. Bb3
{[%clk 00:40:47]} {[%emt 00:00:08]} Ba5 {[%clk 00:11:44]} {[%emt 00:00:19]} 37.
Bd4 {[%clk 00:41:06]} {[%emt 00:00:10]} Bb4 {[%clk 00:11:54]} {[%emt 00:00:21]}
38. Bxa2 {[%clk 00:41:28]} {[%emt 00:00:07]} Ba3 {[%clk 00:11:26]} {[%emt
00:00:59]} 39. Bb1 {[%clk 00:41:06]} {[%emt 00:00:51]} Bb4 {[%clk 00:11:38]}
{[%emt 00:00:19]} 40. h3 {[%clk 00:41:20]} {[%emt 00:00:16]} Be7 {[%clk
00:10:29]} {[%emt 00:01:40]} 41. Kd3 {[%clk 00:41:43]} {[%emt 00:00:06]} h5
{[%clk 00:10:39]} {[%emt 00:00:20]} 42. Kc4 {[%clk 00:41:53]} {[%emt 00:00:20]}
Bd8 {[%clk 00:09:58]} {[%emt 00:01:11]} 43. Bd3 {[%clk 00:42:01]} {[%emt
00:00:22]} Be7 {[%clk 00:09:14]} {[%emt 00:01:15]} 44. Kb5 {[%clk 00:42:23]}
{[%emt 00:00:07]} Ba3 {[%clk 00:08:22]} {[%emt 00:01:22]} 45. Kc6 {[%clk
00:42:38]} {[%emt 00:00:15]} Bb4 {[%clk 00:08:19]} {[%emt 00:00:34]} 46. Kd7
{[%clk 00:42:31]} {[%emt 00:00:36]} Kf8 {[%clk 00:07:41]} {[%emt 00:01:08]} 47.
Bb6 {[%clk 00:42:04]} {[%emt 00:00:57]} Ba3 {[%clk 00:06:41]} {[%emt 00:01:29]}
48. Bc7 {[%clk 00:40:51]} {[%emt 00:01:43]} Bc1 {[%clk 00:07:06]} {[%emt
00:00:05]} 49. Bd6+ {[%clk 00:41:08]} {[%emt 00:00:14]} Kg8 {[%clk 00:07:25]}
{[%emt 00:00:12]} 50. e4 {[%clk 00:39:57]} {[%emt 00:01:40]} Be3 {[%clk
00:07:14]} {[%emt 00:00:41]} 51. Bc4 {[%clk 00:39:40]} {[%emt 00:00:47]} g5
{[%clk 00:06:52]} {[%emt 00:00:51]} 52. Bxe6 {[%clk 00:34:32]} {[%emt
00:05:39]} fxe6 {[%clk 00:06:50]} {[%emt 00:00:32]} 53. Kxe6 {[%clk 00:34:57]}
{[%emt 00:00:05]} g4 {[%clk 00:05:01]} {[%emt 00:02:19]} 54. hxg4 {[%clk
00:35:11]} {[%emt 00:00:15]} hxg4 {[%clk 00:05:11]} {[%emt 00:00:21]} 55. Kd7
{[%clk 00:35:12]} {[%emt 00:00:12]} g3 {[%clk 00:04:23]} {[%emt 00:01:35]} 56.
e6 {[%clk 00:35:37]} {[%emt 00:00:06]} g2 {[%clk 00:04:29]} {[%emt 00:00:24]}
57. Bh2 {[%clk 00:36:03]} {[%emt 00:00:03]} Bf4 {[%clk 00:04:39]} {[%emt
00:00:20]} 58. Bg1 {[%clk 00:36:19]} {[%emt 00:00:14]} 1-0

[Event "NJSK 2026 Jeugd A"]
[Site "Helmond, Netherlands"]
[Date "2026.04.29"]
[Round "5.2"]
[White "Zhu, Chenwu"]
[Black "Kazarjan, Gachatur"]
[Result "1-0"]
[TimeControl "90min/40moves + 30min + 30sec/move"]
[WhiteTitle "-"]
[BlackTitle "-"]
[WhiteFideId "1080687"]
[BlackFideId "1068750"]
[WhiteElo "2282"]
[BlackElo "2272"]

1. e4 {[%emt 00:03:39]} c5 {[%clk 01:26:48]} {[%emt 00:00:27]} 2. Nf3 {[%clk
01:31:21]} {[%emt 00:00:14]} d6 {[%clk 01:27:14]} {[%emt 00:00:05]} 3. d4
{[%clk 01:31:45]} {[%emt 00:00:05]} cxd4 {[%clk 01:27:41]} {[%emt 00:00:03]} 4.
Nxd4 {[%clk 01:32:09]} {[%emt 00:00:06]} Nf6 {[%clk 01:28:08]} {[%emt
00:00:03]} 5. Nc3 {[%clk 01:32:34]} {[%emt 00:00:05]} Nc6 {[%clk 01:28:33]}
{[%emt 00:00:05]} 6. Bg5 {[%clk 01:32:57]} {[%emt 00:00:06]} e6 {[%clk
01:28:37]} {[%emt 00:00:27]} 7. Qd2 {[%clk 01:33:10]} {[%emt 00:00:18]} a6
{[%clk 01:29:02]} {[%emt 00:00:05]} 8. Nxc6 {[%clk 01:33:16]} {[%emt 00:00:24]}
bxc6 {[%emt 00:00:11]} 9. O-O-O {[%clk 01:33:05]} {[%emt 00:00:33]} Be7 {[%clk
01:29:37]} {[%emt 00:00:21]} 10. Bxf6 {[%clk 01:33:26]} {[%emt 00:00:09]} gxf6
{[%clk 01:30:01]} {[%emt 00:00:06]} 11. Bc4 {[%clk 01:33:48]} {[%emt 00:00:08]}
Qb6 {[%clk 01:25:29]} {[%emt 00:05:02]} 12. f4 {[%clk 01:27:00]} {[%emt
00:07:18]} Bb7 {[%clk 01:14:38]} {[%emt 00:11:22]} 13. Qe2 {[%clk 01:16:39]}
{[%emt 00:10:50]} d5 {[%clk 01:06:28]} {[%emt 00:08:40]} 14. Bb3 {[%clk
01:12:40]} {[%emt 00:04:28]} Bd6 {[%clk 01:02:41]} {[%emt 00:04:18]} 15. exd5
{[%clk 01:06:33]} {[%emt 00:06:37]} Bxf4+ {[%clk 01:01:49]} {[%emt 00:01:22]}
16. Kb1 {[%clk 01:07:00]} {[%emt 00:00:03]} cxd5 {[%clk 01:01:44]} {[%emt
00:00:36]} 17. Nxd5 {[%clk 01:00:41]} {[%emt 00:06:48]} Bxd5 {[%clk 01:01:48]}
{[%emt 00:00:25]} 18. Rxd5 {[%clk 00:59:50]} {[%emt 00:01:22]} Be5 {[%clk
01:00:01]} {[%emt 00:02:17]} 19. Rd3 {[%clk 00:56:43]} {[%emt 00:03:36]} Ke7
{[%clk 00:59:21]} {[%emt 00:01:10]} 20. Rhd1 {[%clk 00:45:03]} {[%emt
00:12:11]} Rhd8 {[%clk 00:58:49]} {[%emt 00:01:02]} 21. h3 {[%clk 00:43:06]}
{[%emt 00:02:26]} Rxd3 {[%clk 00:56:26]} {[%emt 00:02:54]} 22. Rxd3 {[%clk
00:40:11]} {[%emt 00:03:25]} Rg8 {[%clk 00:55:22]} {[%emt 00:01:34]} 23. Rd1
{[%clk 00:33:16]} {[%emt 00:07:26]} Rg3 {[%clk 00:44:54]} {[%emt 00:10:59]} 24.
a4 {[%clk 00:27:28]} {[%emt 00:06:17]} Bd6 {[%clk 00:41:34]} {[%emt 00:03:49]}
25. Qe4 {[%clk 00:23:05]} {[%emt 00:04:51]} h5 {[%clk 00:39:20]} {[%emt
00:02:46]} 26. Ka2 {[%clk 00:18:10]} {[%emt 00:05:25]} Rg5 {[%clk 00:36:59]}
{[%emt 00:02:50]} 27. Rd3 {[%clk 00:16:50]} {[%emt 00:01:50]} Re5 {[%clk
00:36:34]} {[%emt 00:00:55]} 28. Qa8 {[%clk 00:16:31]} {[%emt 00:00:49]} Rc5
{[%clk 00:35:29]} {[%emt 00:01:36]} 29. Qe4 {[%clk 00:15:48]} {[%emt 00:01:11]}
Be5 {[%clk 00:35:02]} {[%emt 00:00:57]} 30. Rd2 {[%clk 00:14:42]} {[%emt
00:01:37]} Bd6 {[%clk 00:33:29]} {[%emt 00:02:03]} 31. Rd4 {[%clk 00:13:17]}
{[%emt 00:01:56]} Re5 {[%clk 00:31:39]} {[%emt 00:02:20]} 32. Qd3 {[%clk
00:12:54]} {[%emt 00:00:53]} Re1 {[%clk 00:30:22]} {[%emt 00:01:46]} 33. Qc3
{[%clk 00:10:08]} {[%emt 00:03:16]} Re5 {[%clk 00:25:43]} {[%emt 00:05:10]} 34.
Rc4 {[%clk 00:09:33]} {[%emt 00:01:05]} Bc5 {[%clk 00:26:01]} {[%emt 00:00:12]}
35. Qf3 {[%clk 00:07:11]} {[%emt 00:02:52]} Re1 {[%clk 00:16:19]} {[%emt
00:10:12]} 36. Re4 {[%clk 00:04:24]} {[%emt 00:03:17]} Rc1 {[%clk 00:15:37]}
{[%emt 00:01:04]} 37. c3 {[%clk 00:01:05]} {[%emt 00:03:57]} Bd6 {[%clk
00:15:12]} {[%emt 00:00:55]} 38. Rd4 {[%clk 00:01:06]} {[%emt 00:00:29]} Bc5
{[%clk 00:14:04]} {[%emt 00:01:36]} 39. Rd1 {[%clk 00:01:10]} {[%emt 00:00:28]}
Rxd1 {[%clk 00:14:24]} {[%emt 00:00:11]} 40. Bxd1 {[%clk 00:01:15]} {[%emt
00:00:24]} h4 {[%clk 00:14:47]} {[%emt 00:00:07]} 41. b4 {[%clk 00:01:11]}
{[%emt 00:00:34]} Bd6 {[%clk 00:15:09]} {[%emt 00:00:07]} 42. a5 {[%clk
00:30:16]} {[%emt 00:01:26]} Qb5 {[%clk 00:45:22]} {[%emt 00:00:16]} 43. Be2
{[%clk 00:27:53]} {[%emt 00:02:54]} Qa4+ {[%clk 00:43:33]} {[%emt 00:02:19]} 44.
Kb2 {[%clk 00:28:09]} {[%emt 00:00:14]} Be5 {[%clk 00:43:26]} {[%emt 00:00:37]}
45. Qe4 {[%clk 00:24:50]} {[%emt 00:03:48]} Qd7 {[%clk 00:42:36]} {[%emt
00:01:20]} 46. Kb3 {[%clk 00:21:52]} {[%emt 00:03:29]} Qd2 {[%clk 00:41:43]}
{[%emt 00:01:23]} 47. Qc2 {[%clk 00:19:46]} {[%emt 00:02:35]} Qd5+ {[%clk
00:40:33]} {[%emt 00:01:41]} 48. Bc4 {[%clk 00:19:52]} {[%emt 00:00:24]} Qc6
{[%clk 00:40:24]} {[%emt 00:00:37]} 49. Qe2 {[%clk 00:17:50]} {[%emt 00:02:34]}
Kf8 {[%clk 00:39:28]} {[%emt 00:01:26]} 50. Qf3 {[%clk 00:17:29]} {[%emt
00:00:50]} Qd7 {[%clk 00:38:36]} {[%emt 00:01:23]} 51. Bxa6 {[%clk 00:16:10]}
{[%emt 00:01:50]} Qd2 {[%clk 00:39:01]} {[%emt 00:00:04]} 52. Bb5 {[%clk
00:14:23]} {[%emt 00:02:17]} Qe1 {[%clk 00:38:57]} {[%emt 00:00:33]} 53. Qd3
{[%clk 00:14:11]} {[%emt 00:00:42]} Qg1 {[%clk 00:38:44]} {[%emt 00:00:43]} 54.
Qc2 {[%clk 00:13:46]} {[%emt 00:00:55]} f5 {[%clk 00:39:03]} {[%emt 00:00:12]}
55. a6 {[%clk 00:13:07]} {[%emt 00:01:09]} f4 {[%clk 00:37:30]} {[%emt
00:02:03]} 56. Bd3 {[%clk 00:12:30]} {[%emt 00:01:07]} Qb6 {[%clk 00:36:07]}
{[%emt 00:01:53]} 57. Qe2 {[%clk 00:12:30]} {[%emt 00:00:30]} Bb8 {[%clk
00:36:08]} {[%emt 00:00:30]} 58. Qe4 {[%clk 00:12:00]} {[%emt 00:01:00]} f5
{[%clk 00:35:07]} {[%emt 00:01:31]} 59. Qc4 {[%clk 00:11:25]} {[%emt 00:01:05]}
Ke7 {[%clk 00:35:10]} {[%emt 00:00:27]} 60. Qc8 {[%clk 00:10:18]} {[%emt
00:01:36]} Ba7 {[%clk 00:35:04]} {[%emt 00:00:38]} 61. Bc4 {[%clk 00:10:10]}
{[%emt 00:00:36]} Qe3 {[%clk 00:35:07]} {[%emt 00:00:28]} 62. Qh8 {[%clk
00:08:04]} {[%emt 00:02:35]} Bb6 {[%clk 00:32:55]} {[%emt 00:02:43]} 63. Qxh4+
{[%clk 00:07:51]} {[%emt 00:00:42]} Kd6 {[%clk 00:33:22]} {[%emt 00:00:04]} 64.
Qf6 {[%clk 00:06:50]} {[%emt 00:01:31]} Qe1 {[%clk 00:32:42]} {[%emt 00:01:10]}
65. Qxe6+ {[%clk 00:05:24]} {[%emt 00:01:56]} Qxe6 {[%clk 00:33:00]} {[%emt
00:00:12]} 66. Bxe6 {[%clk 00:05:50]} {[%emt 00:00:04]} Kxe6 {[%clk 00:33:27]}
{[%emt 00:00:03]} 67. c4 {[%clk 00:05:15]} {[%emt 00:01:05]} 1-0